Cogmind - Beta 15 @@@ ROGUE MODE // 2025.10.16 @ 21:18:24 Player: Rentaro Result: Self-destructed Performance ------------- Evolutions (1) 500 Regions Visited (3) 600 Robots Destroyed (24) 120 Value Destroyed (391) 391 Prototype IDs (3) 60 Alien Tech Used (0) 0 Bonus (0) 0 TOTAL SCORE: 1671 Bonus ------- None Cogmind --------- Core Integrity 94/400 Matter 275/300 Energy 100/100 System Corruption 0% Temperature Cool (0) Movement Rolling (100) Location -9/Materials Parts ------- > --- POWER (1) -------- (None) > --- PROPULSION (2) --- Compact Wheel Compact Wheel > --- UTILITY (4) ------ Visual Processing Unit Visual Processing Unit Hardened Medium Armor Plating Hacking Suite > --- WEAPON (2) ------- (None) > --- INVENTORY (5) ---- Experimental Sensor Array Peak State ------------ > --- POWER ------------ Light Ion Engine > --- PROPULSION ------- Compact Wheel Compact Wheel > --- UTILITY ---------- Experimental Sensor Array Hacking Suite > --- WEAPON ----------- Light Assault Rifle Light Assault Rifle > --- INVENTORY -------- Compact Wheel Compact Wheel Compact Wheel [Rating: 17] Favorites ----------- Power Light Ion Engine Engine Light Ion Engine Propulsion Wheel Wheel Wheel Utility Hacking Suite Device Structural Scanner Processor Visual Processing Unit Hackware Hacking Suite Protection Hardened Medium Armor Plating Weapon Light Assault Rifle Ballistic Gun Light Assault Rifle Build | -11 -10 -10 -9 ------- Run | Yrd Mat Min Mat Slots Evolved 2 | . . . 2 Power . | . . . . Propulsion . | . . . . Utility 2 | . . . 2 Weapon . | . . . . Parts Attached 24 | 5 10 1 8 Power 3 | 1 2 . . Engine 3 | 1 2 . . Core . | . . . . Reactor . | . . . . Propulsion 9 | 2 4 . 3 Treads . | . . . . Leg . | . . . . Wheel 9 | 2 4 . 3 Hover . | . . . . Flight . | . . . . Utility 9 | . 3 1 5 Device 3 | . 1 1 1 Storage . | . . . . Processor 4 | . 1 . 3 Hackware 1 | . 1 . . Protection 1 | . . . 1 Artifact . | . . . . Weapon 3 | 2 1 . . Energy Gun . | . . . . Energy Cannon . | . . . . Ballistic Gun 3 | 2 1 . . Ballistic Cannon . | . . . . Launcher . | . . . . Special Weapon . | . . . . Impact Weapon . | . . . . Slashing Weapon . | . . . . Piercing Weapon . | . . . . Special Melee Weapon . | . . . . Unidentified Prototypes 1 | . . 1 . Parts Lost 12 | . 5 3 4 Power 3 | . 2 1 . Propulsion 5 | . 2 1 2 Utility 1 | . . . 1 Weapon 3 | . 1 1 1 Highest Loss Streak 4 | . 4 3 4 To Critical Strikes . | . . . . Average Backups 1 | 1 1 3 2 Power . | . . . . Propulsion . | . . 3 1 Utility . | . . . 1 Weapon . | . . . . Tool/Special . | . . . . Unused Backups . | . . . . Power . | . . . . Propulsion . | . . . . Utility . | . . . . Weapon . | . . . . Tool/Special . | . . . . Average Slot Usage (%) 72 | . 75 75 62 Engine 10 | . 13 7 . Wheel 18 | . 18 23 18 Device 4 | . 5 7 2 Processor 7 | . 3 . 22 Hackware 6 | . 4 14 11 Ballistic Gun 22 | . 28 21 4 Peak Build Rating 17 | 5 9 17 13 Average Rating 6 | 4 5 8 11 On Entrance 5 | . 5 9 6 Naked Turns . | . . . . Heaviest Build 8 | 5 6 6 8 Greatest Support 32 | 20 32 32 32 Greatest Overweight (x) 1 | . 1 . . Average Overweight (x) . | . . . . Largest Inventory Capacity 5 | 5 5 5 5 Average Capacity 5 | 5 5 5 5 Most Carried 4 | 2 3 4 3 Average Carried 1 | 1 1 3 2 Final Capacity 5 | 5 5 5 5 Final Carried 4 | 2 3 4 1 Class Distribution -------------------- 94% | Mutant 5% | Scavenger-Mutant Dominant Class ---------------- Mutant | -10/Materials Mutant | -10/Mines Mutant | -9/Materials Resources | -11 -10 -10 -9 ----------- Run | Yrd Mat Min Mat Matter Collected 551 | 225 270 2 54 Remotely . | . . . . Salvage Created 769 | . 672 . 97 Parts 67 | . 60 . 7 Haulers Intercepted 3 | . 2 . 1 Recyclers Shooed 2 | . 2 . . Parts Field Recycled . | . . . . Retrieved Matter . | . . . . Parts Self-Destructed . | . . . . Prevented . | . . . . Kills | -11 -10 -10 -9 ------- Run | Yrd Mat Min Mat Combat Hostiles Destroyed 10 | . 10 . . Guns 10 | . 10 . . Classes Destroyed 8 | . 8 . . Builder 4 | . 2 . 2 Tunneler 2 | . 2 . . Hauler 3 | . 2 . 1 Recycler 1 | . 1 . . Operator 2 | . 2 . . Watcher 2 | . 2 . . Swarmer 3 | . 3 . . Grunt 7 | . 7 . . Best Kill Streak 5 | . 5 . 2 Combat Bots Only 3 | . 3 . . Max Kills in Single Turn 2 | . 2 . 1 Gunslinging 1 | . 1 . . Exploded . | . . . . Melee . | . . . . Uniques/NPCs Destroyed . | . . . . Combat | -11 -10 -10 -9 -------- Run | Yrd Mat Min Mat Hostile Shots Fired 114 | 2 39 7 66 Missed 30 | . 8 1 21 Hits 84 | 2 31 6 45 Projectile 84 | 2 31 6 45 AOE 9 | 2 . 7 . Damage Taken 1351 | 63 396 285 607 Core 544 | 9 89 140 306 Absorbed by Shields . | . . . . Core Remaining (%) 50 | 96 . 4 . Volleys Fired 104 | . 85 3 16 Largest 2 | . 2 1 1 Hottest 40 | . 40 20 20 Shots Fired 189 | . 170 3 16 Gun 189 | . 170 3 16 Cannon . | . . . . Launcher . | . . . . Special . | . . . . Kinetic 189 | . 170 3 16 Thermal . | . . . . Explosive . | . . . . Electromagnetic . | . . . . Robot Hit Streak 8 | . 8 1 3 Robot Miss Streak 6 | . 6 1 3 Penetration Max . | . . . . Secondary Targets 1 | . 1 . . Max Gunslinging Chain 1 | . 1 . . Shots Hit Robots 106 | . 95 1 10 Core Hits 49 | . 45 . 4 Critical Kills . | . . . . Critical Parts Destroyed . | . . . . Critical Strikes . | . . . . Melee Attacks . | . . . . Impact . | . . . . Slashing . | . . . . Piercing . | . . . . Sneak Attacks . | . . . . Combat Hostiles . | . . . . Follow-up Attacks . | . . . . Damage Inflicted 917 | . 812 13 92 Guns 903 | . 812 10 81 Cannons . | . . . . Explosions . | . . . . Melee . | . . . . Ramming 14 | . . 3 11 Kinetic 903 | . 812 10 81 Thermal . | . . . . Explosive . | . . . . Electromagnetic . | . . . . Impact . | . . . . Slashing . | . . . . Piercing . | . . . . Highest Corruption . | . . . . Average Corruption . | . . . . Corruption Purged . | . . . . Corruption Blocked . | . . . . Overload Shots . | . . . . Overflow Damage . | . . . . Projectiles . | . . . . Explosions . | . . . . Melee . | . . . . Knockbacks . | . . . . Impact . | . . . . Kinetic . | . . . . Secondary . | . . . . Self-Inflicted Damage 6 | . . 1 5 Shots . | . . . . Rammed 3 | . . 1 2 Targets Rammed 3 | . . 1 2 Kicked . | . . . . Crushed . | . . . . Highest Temperature 18 | . 18 . . Average Temperature 8 | . 8 . . Received Heat Transfer 414 | . 210 . 204 Siege Activations . | . . . . Martial Activations . | . . . . Shielding Activations . | . . . . Robots Disrupted . | . . . . Combat Hostiles . | . . . . Robots Corrupted . | . . . . Combat Hostiles . | . . . . Parts Fried . | . . . . Impact Corruptions . | . . . . Robots Melted . | . . . . Combat Hostiles . | . . . . Parts Melted . | . . . . Heat Transferred . | . . . . Parts Sabotaged . | . . . . Parts Stolen . | . . . . Parts Stripped . | . . . . Power Chain Reactions . | . . . . Alert | -11 -10 -10 -9 ------- Run | Yrd Mat Min Mat Maximum Alert Level . | . . . . Low Security (%) 100 | 100 100 100 100 Level 1 . | . . . . Level 2 . | . . . . Level 3 . | . . . . Level 4 . | . . . . Level 5 . | . . . . High Security . | . . . . Max Security . | . . . . Peak Influence 80 | . 79 . 80 Initial . | . . . . Average 13 | . 29 . 7 Influence Increases 448 | . 311 . 137 Destroy 0b10 Robot/C 200 | . 200 . . Destroy 0b10 Robot/NC 70 | . 55 . 15 Destroy Leader 50 | . 48 . 2 Successful Hack 8 | . 8 . . Lose Combat Pursuer 120 | . . . 120 Influence Decreases 368 | . 311 . 57 Time Decay 318 | . 261 . 57 Lost Part 50 | . 50 . . Squads Dispatched 5 | . 4 . 1 Investigation 2 | . 2 . . Extermination . | . . . . Reinforcement 3 | . 2 . 1 Assault . | . . . . Garrison . | . . . . Intercept . | . . . . Searches Triggered . | . . . . Construction Impeded . | . . . . Haulers Reinforced . | . . . . Active Scanning Responses . | . . . . Cargo Convoy Interrupts . | . . . . Stealth | -11 -10 -10 -9 --------- Run | Yrd Mat Min Mat Distress Signals 3 | . 2 . 1 Communications Jammed . | . . . . Distress Signals . | . . . . Times Spotted 36 | 2 16 2 16 Peak Tracking Total 8 | 2 7 2 8 Tactical Retreats 2 | . . . 2 Traps | -11 -10 -10 -9 ------- Run | Yrd Mat Min Mat Traps Triggered . | . . . . Indirectly . | . . . . Trap Hack Attempts . | . . . . Triggered . | . . . . Disarmed . | . . . . Reprogrammed . | . . . . Reused . | . . . . Traps Extracted . | . . . . Installed . | . . . . Triggered . | . . . . Machines | -11 -10 -10 -9 ---------- Run | Yrd Mat Min Mat Machines Disabled . | . . . . Max in Single Turn . | . . . . Machines Repaired . | . . . . Machines Dismantled . | . . . . Machines Sabotaged . | . . . . Overloaded Fab Kills . | . . . . Hacking | -11 -10 -10 -9 --------- Run | Yrd Mat Min Mat Machines Accessed 7 | . 6 . 1 Terminals 5 | . 5 . . Fabricators . | . . . . Repair Stations . | . . . . Recycling Units 1 | . 1 . . Scanalyzers 1 | . . . 1 Garrison Access . | . . . . Total Hacks 17 | . 15 . 2 Successful 11 | . 9 . 2 Failed 6 | . 6 . . Catastrophic . | . . . . Database Lockouts . | . . . . Manual 5 | . 5 . . Terminals 14 | . 14 . . Fabricators . | . . . . Repair Stations . | . . . . Recycling Units 1 | . 1 . . Scanalyzers 2 | . . . 2 Garrison Access . | . . . . Terminal Hacks 8 | . 8 . . Prototype ID Bank 1 | . 1 . . Emergency Access Points 1 | . 1 . . Alert Level 1 | . 1 . . Locate Traps 3 | . 3 . . Registered Components 1 | . 1 . . Zone Layout 1 | . 1 . . Fabricator Hacks . | . . . . Repair Station Hacks . | . . . . Recycling Unit Hacks 1 | . 1 . . Report Inventory 1 | . 1 . . Scanalyzer 2 | . . . 2 Insert Component 1 | . . . 1 Analyze 1 | . . . 1 Garrison Access Hacks . | . . . . Unauthorized Hacks . | . . . . Terminals . | . . . . Fabricators . | . . . . Repair Stations . | . . . . Recycling Units . | . . . . Scanalyzers . | . . . . Garrison Access . | . . . . Data Cores Recovered . | . . . . Used . | . . . . Hacking Detections 5 | . 5 . . Full Trace Events 1 | . 1 . . Feedback Events . | . . . . Feedback Blocked . | . . . . Robot Schematics Acquired . | . . . . Robots Built . | . . . . Authchips . | . . . . Time . | . . . . Total Robot Build Rating . | . . . . Part Schematics Acquired . | . . . . Parts Built . | . . . . Authchips . | . . . . Time . | . . . . Total Part Build Rating . | . . . . Parts Repaired . | . . . . Time . | . . . . Parts Recycled . | . . . . Recycled Matter . | . . . . Retrieved Matter . | . . . . Retrieved Components . | . . . . Parts Scanalyzed 1 | . . . 1 Part Schematics Acquired . | . . . . Parts Damaged . | . . . . Bothacking | -11 -10 -10 -9 ------------ Run | Yrd Mat Min Mat Used RIF Installer . | . . . . Robots Hacked . | . . . . Non-combat . | . . . . Combat . | . . . . Robot Hacks Applied . | . . . . Relay Couplers Released . | . . . . Fabnet Peak Effective % . | . . . . Robots Rewired . | . . . . Allies Hacked . | . . . . Hacks Repelled . | . . . . Allies | -11 -10 -10 -9 -------- Run | Yrd Mat Min Mat Total Allies . | . . . . Largest Group . | . . . . Highest-Rated Group . | . . . . Highest-Rated Ally . | . . . . Total Orders . | . . . . Ally Attacks . | . . . . Total Damage . | . . . . Kills . | . . . . Allies Corrupted . | . . . . Allies Melted . | . . . . Intel | -11 -10 -10 -9 ------- Run | Yrd Mat Min Mat Active Infowar (turns) 912 | . 614 36 262 Optics 262 | . . . 262 Sensors 3 | . . 3 . Structural 495 | . 386 33 76 T.N.C. 270 | . 270 . . Robot Analysis Total . | . . . . Derelict Logs Recovered . | . . . . Drone Launches . | . . . . Drone Recoveries . | . . . . Exploration | -11 -10 -10 -9 ------------- Run | Yrd Mat Min Mat Turns Passed 2444 | 1063 1010 76 295 Spaces Moved 1119 | 83 684 68 284 Core 241 | 3 174 . 64 Treads . | . . . . Legs . | . . . . Wheels 878 | 80 510 68 220 Hover . | . . . . Flight . | . . . . Fastest Speed 50 | 50 50 100 50 Average Speed 89 | 78 90 100 88 Slowest Speed 100 | 80 100 100 100 Overloaded Moves . | . . . . Propulsion Burnouts . | . . . . Robots Hopped . | . . . . Potential Cave-ins . | . . . . Cave-ins Triggered . | . . . . Exploration Rate (%) 36 | 8 85 20 34 Regions Visited 3 Branch Regions 1 Pre-discovered Areas . | . . . . Known Exits Taken . | . . . . Unknown Exits Taken 3 | 1 1 1 . Scrap Searched 1 | . . 1 . Spaces Dug . | . . . . Terrain Destroyed . | . . . . Melee . | . . . . Projectile . | . . . . AOE . | . . . . Terrain Rammed . | . . . . Walls Destroyed . | . . . . Machines Disabled . | . . . . Actions | -11 -10 -10 -9 --------- Run | Yrd Mat Min Mat Total 2404 | 1080 939 73 312 Wait 1141 | 986 155 . . Move 1116 | 82 683 67 284 Hop . | . . . . Pick Up 13 | 7 5 . 1 Fast Attach 8 | . 4 . 4 Attach 13 | 5 4 . 4 Detach 2 | . 1 1 . Swap 3 | . 2 1 . Drop 1 | . . . 1 Fire 104 | . 85 3 16 Melee . | . . . . Ram 3 | . . 1 2 Kick . | . . . . Crush . | . . . . Escape Stasis . | . . . . Rewire . | . . . . Trap . | . . . . Miscellaneous . | . . . . Route ------- -11/Scrapyard -10/Materials (discovered 4 exits: *Mat x2 / [*Min] / [Sub]) -10/Mines -9/Materials History --------- Turn | Location | Event 30 | -11/Scrapyard | Discovered new exit (range 15) 1064 | -11/Scrapyard | Assembled infested the area 1064 | -11/Scrapyard | Entered Materials 1065 | -10/Materials | Build established: Mutant 1065 | -10/Materials | Met a group of wandering Federalists 1358 | -10/Materials | Discovered new exit (range 9) 1365 | -10/Materials | Lost 4 parts (1p2n1w) 1731 | -10/Materials | Discovered new exit (range 8) 1780 | -10/Materials | Discovered new exit (range 12) 1977 | -10/Materials | Discovered new exit (range 13) 2074 | -10/Materials | Entered Mines 2075 | -10/Mines | Assembled infested the area 2080 | -10/Mines | Met a Derelict bent on vengeance 2105 | -10/Mines | Found a damaged Exp. Sensor Array with a note attached 2107 | -10/Mines | Found Prototype Device 2107 | -10/Mines | Identified Exp. Sensor Array 2116 | -10/Mines | Core integrity fell below 50% 2119 | -10/Mines | Core integrity fell below 20% 2142 | -10/Mines | Discovered new exit (range 8) 2150 | -10/Mines | Entered Materials 2150 | -9/Materials | Evolved 2 slots: Utility x2 2158 | -9/Materials | Lost 3 parts (1p1n1w) 2331 | -9/Materials | Core integrity fell below 50% 2337 | -9/Materials | Lost 4 parts (2n1u1w) 2445 | -9/Materials | Self-destructed Last Messages --------------- 02214_ Acquired Structural Scanner. 02215_ Acquired 10 matter. 02245_ A-02 Transporter destroyed. 02264_ K-01 Serf collects debris. 02274_ Lgt. Assault Rifle destroyed. 02274_ Com. Wheel destroyed. 02283_ O-16 Technician: "IFF HANDSHAKE FAILED. SECURING TERMINAL." 02290_ Structural Scanner destroyed. 02291_ ALERT: Hostiles spotted, dispatching reinforcements to Terminal M008. 02306_ Com. Wheel destroyed. 02309_ K-01 Serf collects debris. 02342_ Acquired Hrd. Medium Armor Plating. 02422_ W-16 Scout sends out distress signal. 02427_ Slammed into G-34 Mercenary. 02428_ Destabilizing: System interference. 02428_ Visual Processing Unit temporarily disabled. 02444_ U-05 Engineer works on Processing Tank. Map ----- +----------------------------------------------------+ | ???????????????????????????# """ # #?# # ## | | ???????????????????????????# """ # #?#!!=# ## | | ???????????????????????????# """ + #?#!==# ## | | ???????????????????????????# # #?#!=!# ## | | ???????????????????????????# # #?# # ## | | ???????????????????????????# # ### # # | | ???????????????????????????######## ######### # | | ??????????????????????????????????# ## # # | | ??????????????????????????????????# ## # # | | ??????????????????????????????????# ## """ # + | | ??????????????????????????????????# ## """ # # | | ??????????????????????????????????# ## """ # # | | ??????????????????????????????????# ## # ## | | ??????????????????????#???????????# ## """ # | | ??????????????????????+ ??????????# ## """ # | | ??????????????????????# ?????????# ## """ + | | ???????????????????????? ""??????# ##] ##/### | | ??????????????# ????????? ??????# #####+### | | ??????????????? ????????##+#######g + | | ??????????????# ######## ## """ | | ??????????????? ## """ | | ???????????????? #### ## """ | | ???????????????? ##/####### ## | | ???????????????? # ! ## ? ### ### | | ????????????????? """"" # ##????####### | | ???????????????????""""" @ # !] #??????#####? | | ??????????????+ """"" # ! #???????????? | | ??????????????# # #???????????? | | ??????????????# + #???????????? | | ??????????????# """"" ########???????????? | | ??????????????# """"" #??????????????????? | | ??????????????# ? """"" #??????????????????? | | ??????????????????? #??????????????????? | | ?????????????????? ??????????????????? | | ????????????????? """"" ?????????????????? | | ???????????????? ??""""" ?????????????????? | | ????????????????????"""" ????????????????? | | ????????????????????? ???????????????? | | ????????????????????? ???????????????? | | ????????????????????? < ???????????????? | | ????????????????????? u ** ???????????????? | | ???????????????????? ** ???????????????? | | ?????????????????????? ????????????????? | | ????????????????????????? ?????????????????? | | ??????????????????????????? ?????????????????? | | ?????????????????????????????????????????????????? | | ?????????????????????????????????????????????????? | | ?????????????????????????????????????????????????? | | ?????????????????????????????????????????????????? | | ?????????????????????????????????????????????????? | +----------------------------------------------------+ Best States ------------- Heat Dissipation 28 Energy Generation 10 Energy Capacity 125 Matter Stores 300 Matter Capacity 300 Sight Range 18 Robot Scan Range 20 Terrain Scan Density 10 Armor Coverage 225 Evasion (%) 50 Offensive Hacking 10 Item Schematics ----------------- None Robot Schematics ------------------ None Fabricated ------------ Nothing Repaired ---------- Nothing Alien Tech Used ----------------- None Achievements -------------- None Challenges ------------ None Game ------ Seed RiotPhaseMachine Manual? 0 Play Time 00:19:50 Cumulative 55.6 hours Start 2025.10.16 @ 18:38:58 End 2025.10.16 @ 21:18:24 Sessions 3 Manual Loads 0 Difficulty Rogue Special Mode None Game No. 25 Rogue 25 Adventurer 0 Explorer 0 Win Type - Total 1 Types 0/0/0/1/0/0/0/0/0/0 Lore% 18 Gallery% 30 Achievement% 38 Wizard Run 0 Options --------- Layout 1 ASCII 0 Keyboard 0 Movement Mouse Keybinds 0 Fullscreen 1 Font 24/Terminus Map View 50x35 Zoom Use 0% Tactical HUD 1 Map Filters NONE Filters NONE Steam 1 RUN: 70782d81-8faa-445a-bffe-de106f9f5057